bitfinex-derivatives/quotes_SOLF0:USTF0_20250624
["timestamp","ask_amount","ask_price","bid_price","bid_amount"]
[1750754096831,2.64530531,144.03,143.78,2.2366]
[1750754097032,2.64530531,144.02,143.77,6.33887781]
[1750754097234,20.85,144.04,143.78,2.3567]
[1750754097431,2.68568894,144.03,143.78,8.69557781]
[1750754097636,2.68568894,144.02,143.78,2.3567]
[1750754097834,2.68568894,144.01,143.78,2.3567]
[1750754098132,2.68568894,144.0,143.78,2.3567]
[1750754098336,2.68568894,144.01,143.78,2.3567]
[1750754098526,2.68568894,144.0,143.78,2.3567]
[1750754098835,2.68568894,143.99,143.78,2.3567]
[1750754099036,2.68568894,143.98,143.78,2.3567]
[1750754099228,2.68568894,143.99,143.78,2.3567]
[1750754099427,2.68568894,143.98,143.78,2.3567]
[1750754099626,1.573,143.97,143.78,2.3567]
[1750754100336,2.68568894,143.96,143.78,2.3567]
[1750754100521,2.68568894,143.95,143.78,2.3567]
[1750754101635,25.10868894,143.97,143.78,2.3567]
[1750754101837,22.423,143.97,143.78,2.3567]
[1750754102035,25.10868894,143.97,143.78,2.3567]
[1750754102338,2.68568894,143.96,143.78,2.3567]
[1750754102531,22.423,143.97,143.78,2.3567]
[1750754102532,1.573,143.97,143.78,2.3567]
[1750754102731,2.67810521,143.96,143.78,2.3567]
[1750754103434,20.85,143.96,143.78,2.3567]
[1750754104439,20.85,143.95,143.78,2.3567]
[1750754105638,1.573,143.97,143.78,2.3567]
[1750754107331,20.85,143.96,143.78,2.3567]
[1750754107841,1.573,143.97,143.8,6.33887781]
[1750754108051,1.573,143.97,143.81,8.76237781]
[1750754108233,1.573,143.97,143.81,2.4235]
[1750754109537,1.573,143.97,143.84,6.39724687]
[1750754109839,1.573,143.97,143.85,8.67944687]
[1750754110038,1.573,143.97,143.86,2.4175]
[1750754112336,1.573,143.97,143.86,8.81474687]
[1750754113935,1.573,143.97,143.86,2.4175]
[1750754114333,1.573,143.97,143.86,8.81474687]
[1750754115544,1.573,143.97,143.87,6.39724687]
[1750754116347,1.573,143.97,143.88,2.3315]
[1750754119744,2.70115812,144.04,143.88,8.72874687]
[1750754119940,1.5801,144.01,143.89,6.39724687]
[1750754120945,1.5801,144.01,143.9,6.39724687]
[1750754121852,2.71118705,144.0,143.9,6.39724687]
[1750754122047,1.5801,144.01,143.9,6.39724687]
[1750754122751,2.71197505,144.05,143.92,6.39724687]
[1750754123052,2.71197505,144.04,143.93,4.4543]
[1750754123252,2.71197505,144.03,143.93,4.4543]
[1750754123546,2.71197505,144.02,143.93,4.4543]
[1750754123750,1.5801,144.05,143.93,4.4543]
[1750754123943,2.71221679,144.04,143.93,4.4543]
[1750754124242,1.5801,144.05,143.93,4.4543]
[1750754124243,2.71221679,144.03,143.93,4.4543]
[1750754124445,2.71221679,144.02,143.93,4.4543]
[1750754124643,2.71176706,144.01,143.93,4.4543]
[1750754124845,1.5801,144.05,143.93,4.4543]
[1750754125044,2.71289093,144.04,143.93,4.4543]
[1750754125252,2.71289093,144.03,143.93,4.4543]
[1750754125454,2.71303915,144.02,143.93,4.4543]
[1750754125752,2.71303915,144.01,143.93,4.4543]
[1750754125945,6.12521156,144.05,143.93,4.4543]
[1750754126147,2.71266051,144.04,143.93,4.4543]
[1750754126345,2.71266051,144.03,143.93,4.4543]
[1750754126541,2.71266051,144.02,143.93,4.4543]
[1750754126745,2.71266051,144.01,143.93,4.4543]
[1750754126947,6.12521156,144.05,143.93,4.4543]
[1750754127154,2.691687,144.04,143.88,8.72874687]
[1750754127451,2.691687,144.03,143.89,2.1925]
[1750754127639,2.691687,144.02,143.89,2.1925]
[1750754127841,2.691687,144.01,143.89,8.58974687]
[1750754128042,2.691687,144.0,143.89,8.58974687]
[1750754128242,22.4301,144.05,143.89,8.58974687]
[1750754128444,2.69162922,144.04,143.89,8.58974687]
[1750754128649,2.69162922,144.03,143.89,8.58974687]
[1750754128954,2.69162922,144.02,143.89,8.58974687]
[1750754129150,2.69162922,144.01,143.89,8.58974687]
[1750754129350,2.69162922,144.0,143.89,8.58974687]
[1750754129553,2.69162922,144.04,143.89,8.58974687]
[1750754129748,22.4301,144.05,143.9,6.39724687]
[1750754129749,2.69162922,144.03,143.9,6.39724687]
[1750754129952,2.69162922,144.02,143.9,6.39724687]
[1750754130156,2.69162922,144.04,143.9,6.39724687]
[1750754130454,2.69162922,144.03,143.9,6.39724687]
[1750754130654,2.69162922,144.02,143.9,6.39724687]
[1750754130854,2.69162922,144.04,143.9,6.39724687]
[1750754131055,2.69162922,144.03,143.91,6.39724687]
[1750754131258,2.69162922,144.04,143.91,6.39724687]
[1750754131458,2.69162922,144.03,143.91,6.39724687]
[1750754131664,2.69162922,144.04,143.91,6.39724687]
[1750754131960,2.69162922,144.03,143.91,6.39724687]
[1750754132154,2.69162922,144.04,143.9,6.39724687]
[1750754132457,2.69162922,144.03,143.9,6.39724687]
[1750754132652,2.69162922,144.04,143.91,6.39724687]
[1750754133651,2.69162922,144.04,143.92,6.39724687]
[1750754133850,1.5801,144.05,143.93,2.3993]
[1750754134154,2.69336449,144.04,143.93,2.3993]
[1750754134352,1.5801,144.05,143.93,2.3993]
[1750754134552,2.69337353,144.04,143.93,2.3993]
[1750754135552,4.27347353,144.05,143.93,2.3993]
[1750754138762,25.12347353,144.05,143.89,2.1925]
[1750754139056,20.85,144.03,143.89,4.415]
[1750754139263,2.69337353,144.02,143.89,4.415]
[1750754139455,2.69337353,144.01,143.89,4.415]
[1750754139660,2.69337353,144.0,143.89,4.415]
[1750754139852,20.85,144.01,143.89,4.415]
[1750754140050,2.69337353,144.0,143.89,4.415]
[1750754140665,23.54337353,144.01,143.89,4.415]
[1750754140960,23.54337353,144.03,143.89,4.415]
[1750754141162,2.69337353,144.02,143.89,4.415]
[1750754141354,2.69337353,144.01,143.89,4.415]
[1750754141555,2.69337353,144.02,143.89,4.415]
[1750754141760,2.69337353,144.01,143.89,4.415]
[1750754141960,2.69337353,144.02,143.89,4.415]
[1750754142261,2.69337353,144.01,143.89,4.415]
[1750754142457,2.69337353,144.02,143.89,4.415]
[1750754142854,2.69337353,144.01,143.89,4.415]
[1750754143160,2.69337353,144.02,143.89,4.415]
[1750754143362,23.54337353,144.01,143.89,4.415]
[1750754143562,2.69337353,144.0,143.89,4.415]
[1750754143763,2.69337353,143.99,143.84,6.4413191]
[1750754143954,2.69337353,143.99,143.8,12.79449374]
[1750754143955,2.69337353,143.98,143.83,7.1305]
[1750754144155,2.69337353,143.97,143.83,7.1305]
[1750754144362,2.68817808,143.97,143.83,7.1305]
[1750754144856,2.68817808,143.96,143.83,7.1305]
[1750754145058,2.68817808,143.97,143.83,7.1305]
[1750754145257,2.68817808,143.96,143.83,7.1305]
[1750754145457,2.68817808,143.95,143.83,7.1305]
[1750754145657,2.68817808,143.97,143.83,7.1305]
[1750754145964,2.68817808,143.96,143.83,7.1305]
[1750754146159,2.68817808,143.95,143.83,7.1305]
[1750754146373,23.53817808,143.97,143.83,7.1305]
[1750754146566,1.5777,143.98,143.83,7.1305]
[1750754146567,2.68817808,143.96,143.83,7.1305]
[1750754146753,2.68817808,143.95,143.83,7.1305]
[1750754146959,2.68817808,143.94,143.83,7.1305]
[1750754147158,2.68817808,143.93,143.83,7.1305]
[1750754147463,2.68817808,143.97,143.83,7.1305]
[1750754147766,2.68817808,143.96,143.83,7.1305]
[1750754148066,2.69560136,143.95,143.83,7.1305]
[1750754148270,2.69560136,143.94,143.83,7.1305]
[1750754148565,2.69560136,143.93,143.83,7.1305]
[1750754148765,2.69560136,143.92,143.83,7.1305]
[1750754148966,2.69560136,143.91,143.83,7.1305]
[1750754149267,2.69560136,143.9,143.78,6.4413191]
[1750754149466,2.68670718,143.92,143.78,6.9972]
[1750754149665,2.68670718,143.91,143.78,6.9972]
[1750754149866,2.68670718,143.9,143.78,6.9972]
[1750754150165,2.68670718,143.89,143.78,6.9972]
[1750754150370,2.68670718,143.9,143.78,6.9972]
[1750754150562,1.5819,143.91,143.78,6.9972]
[1750754150861,4.26685154,143.91,143.78,6.9972]
[1750754151067,2.68495154,143.9,143.78,6.9972]
[1750754151368,2.68441502,143.9,143.78,6.9972]
[1750754151570,2.68441502,143.89,143.78,6.9972]
[1750754151865,2.68441502,143.9,143.78,6.9972]
[1750754152270,1.5819,143.91,143.78,6.9972]
[1750754156965,4.26440163,143.91,143.78,6.9972]
[1750754157155,1.5819,143.91,143.78,6.9972]
[1750754158367,4.26440163,143.91,143.78,6.9972]
[1750754158665,1.5819,143.91,143.78,6.9972]
[1750754166073,2.68250163,143.95,143.78,6.9972]
[1750754166268,20.85,143.96,143.78,6.9972]
[1750754166462,2.68250163,143.95,143.78,6.9972]
[1750754167272,23.53250163,143.96,143.78,6.9972]
[1750754167462,2.68250163,143.96,143.79,6.44811337]
[1750754167975,2.68094781,143.96,143.79,6.44811337]
[1750754168174,22.4323,143.97,143.8,6.44811337]
[1750754168561,25.11324781,143.97,143.8,6.44811337]
[1750754168868,145.78451841,143.97,143.8,6.44811337]
[1750754169060,2.68094781,143.96,143.8,6.44811337]
[1750754170474,2.68094781,143.96,143.78,15.59468449]
[1750754170475,2.68094781,143.96,143.81,6.44811337]
[1750754171774,2.68094781,143.96,143.8,6.44811337]
[1750754171976,2.68094781,143.95,143.8,6.44811337]
[1750754172275,2.68094781,143.96,143.8,6.44811337]
[1750754173076,2.68094781,143.96,143.81,6.44811337]
[1750754173272,2.68094781,143.96,143.82,6.44811337]
[1750754173677,2.68094781,143.96,143.83,6.44811337]
[1750754173972,123.35221841,143.97,143.83,6.44811337]
[1750754173973,123.35221841,143.97,143.84,6.8204]
[1750754174178,123.35221841,143.97,143.84,13.26851337]
[1750754176877,2.68795008,143.96,143.84,6.8204]
[1750754177083,2.68795008,143.95,143.84,6.8204]
[1750754177273,2.68795008,143.96,143.84,6.8204]
[1750754177468,2.68795008,143.95,143.84,6.8204]
[1750754177673,123.35221841,143.97,143.84,6.8204]
[1750754177674,2.68795008,143.94,143.84,6.8204]
[1750754177876,2.68795008,143.93,143.84,6.8204]
[1750754178187,2.68795008,143.92,143.84,6.8204]
[1750754178484,2.68795008,143.93,143.84,6.8204]
[1750754179083,1.5803,143.94,143.84,6.8204]
[1750754179382,2.68795008,143.93,143.84,6.8204]
[1750754179588,1.5803,143.94,143.84,6.8204]
[1750754179784,2.69603454,143.93,143.84,6.8204]
[1750754179978,2.69603454,143.96,143.84,6.8204]
[1750754180181,2.69663224,143.95,143.84,13.26851337]
[1750754180386,2.69663224,143.96,143.84,13.26851337]
[1750754180585,2.69663224,143.95,143.84,13.26851337]
[1750754180894,2.69663224,143.96,143.85,6.44811337]
[1750754181080,2.69663224,143.95,143.85,6.44811337]
[1750754181385,123.35221841,143.97,143.85,6.44811337]
[1750754181583,2.70080785,143.96,143.85,6.44811337]
[1750754181884,2.70080785,143.95,143.85,6.44811337]
[1750754182088,2.70068208,143.94,143.85,6.44811337]
[1750754182281,2.70067848,143.96,143.85,6.44811337]
[1750754182586,2.70067728,143.95,143.86,6.44811337]
[1750754182883,2.70068437,143.96,143.86,6.44811337]
[1750754183083,2.70079747,143.95,143.86,6.44811337]
[1750754183283,123.35221841,143.97,143.86,6.44811337]
[1750754183485,2.70515685,143.96,143.87,6.44811337]
[1750754183673,2.70515685,143.95,143.87,6.44811337]
[1750754183879,123.35221841,143.97,143.87,6.44811337]
[1750754184178,2.70517498,143.96,143.87,6.44811337]
[1750754184379,2.70517498,143.95,143.87,6.44811337]
[1750754184577,123.35221841,143.97,143.87,6.44811337]
[1750754184779,2.70460204,143.96,143.87,6.44811337]
[1750754184983,2.70460204,143.95,143.87,6.44811337]
[1750754185277,123.35221841,143.97,143.87,6.44811337]
[1750754185478,2.70493615,143.96,143.87,6.44811337]
[1750754185681,2.70493615,143.95,143.87,6.44811337]
[1750754185880,123.35221841,143.97,143.87,6.44811337]
[1750754186085,2.70495929,143.96,143.88,6.44811337]
[1750754186285,123.35221841,143.97,143.88,6.44811337]
[1750754186576,2.70506093,143.96,143.88,6.44811337]
[1750754186782,123.35221841,143.97,143.88,6.44811337]
[1750754186988,123.35221841,143.97,143.89,6.44811337]
[1750754187185,123.35221841,143.97,143.9,6.9181]
[1750754190683,6.38858363,144.04,143.9,13.36621337]
[1750754190886,6.38858363,144.07,143.93,6.44811337]
[1750754191197,7.96838363,144.09,143.93,6.44811337]
[1750754191394,6.38858363,144.11,143.96,6.44811337]
[1750754191696,1.5798,144.11,143.97,13.37641337]
[1750754191900,1.5798,144.11,143.98,6.44811337]
[1750754192101,1.5798,144.11,143.97,13.37641337]
[1750754192500,6.38858363,144.16,143.98,6.44811337]
[1750754192696,1.5798,144.15,143.99,6.44811337]
[1750754192897,1.5798,144.15,144.0,6.44811337]
[1750754193099,6.38858363,144.19,144.0,6.44811337]
[1750754193296,1.5798,144.16,144.0,6.44811337]
[1750754194099,1.5798,144.16,143.98,6.44811337]
[1750754194298,1.5798,144.16,143.97,6.9283]
[1750754196590,1.5798,144.16,143.98,6.42340741]
[1750754196795,6.37506564,144.21,143.99,6.42340741]
[1750754196997,1.5803,144.19,144.01,6.42340741]
[1750754197198,1.5803,144.19,144.0,6.42340741]
[1750754198209,1.5803,144.19,143.99,6.42340741]
[1750754200103,2.78789955,144.19,143.99,6.42340741]
[1750754201209,2.78789955,144.19,143.98,6.42340741]
[1750754202209,2.78789955,144.19,143.97,13.35170741]
[1750754202411,2.78789955,144.19,143.98,6.42340741]
[1750754202606,1.20759955,144.19,143.98,6.42340741]
[1750754202810,1.5774,144.18,143.98,6.42340741]
[1750754203213,1.5774,144.18,143.97,13.35170741]
[1750754204312,1.20759955,144.19,143.97,13.35170741]
[1750754204612,1.20759955,144.19,143.98,6.42340741]
[1750754205812,1.20759955,144.19,143.99,6.42340741]
[1750754206306,1.20759955,144.19,143.98,6.42340741]
[1750754208416,1.20759955,144.19,143.97,6.9283]
[1750754213420,1.20759955,144.19,143.97,13.29263542]
[1750754214823,1.20759955,144.19,143.97,6.9283]
[1750754216309,1.20759955,144.19,143.97,13.29263542]
[1750754216508,1.20759955,144.19,143.97,6.9283]
[1750754217024,1.20759955,144.19,143.97,13.29263542]
[1750754217422,1.20759955,144.19,143.98,6.36433542]
[1750754218229,1.20759955,144.19,143.97,13.29263542]
[1750754218616,1.20759955,144.19,143.97,6.9283]
[1750754218819,2.71308072,144.18,143.97,6.9283]
[1750754219018,2.71308072,144.17,143.97,6.9283]
[1750754219218,23.56308072,144.16,143.97,6.9283]
[1750754219418,2.71308072,144.15,143.97,6.9283]
[1750754219820,2.71563335,144.15,143.97,6.9283]
[1750754220019,148.91660206,144.15,143.97,6.9283]
[1750754220221,146.20096871,144.15,143.97,6.9283]
[1750754220420,2.71560132,144.14,143.97,6.9283]
[1750754221518,20.85,144.14,143.97,6.9283]
[1750754221724,23.56560132,144.14,143.97,6.9283]
[1750754222323,23.56735421,144.14,143.97,6.9283]
[1750754222529,2.71735421,144.13,143.97,6.9283]
[1750754222721,2.71735421,144.12,143.97,6.9283]
[1750754222917,2.71735421,144.11,143.97,6.9283]
[1750754223221,1.5793,144.11,143.97,6.9283]
[1750754223627,4.29665421,144.11,143.97,6.9283]
[1750754223931,1.5793,144.11,143.97,6.9283]
[1750754224922,2.71735421,144.1,143.97,6.9283]
[1750754225224,2.71735421,144.09,143.97,6.9283]
[1750754225422,2.71735421,144.1,143.97,6.9283]
[1750754225621,2.71735421,144.09,143.97,6.9283]
[1750754225827,2.71735421,144.1,143.97,6.9283]
[1750754226628,1.5793,144.11,143.97,6.9283]
[1750754226629,2.71735421,144.09,143.97,6.9283]
[1750754226828,2.71735421,144.08,143.97,6.9283]
[1750754227027,2.71735421,144.1,143.97,6.9283]
[1750754227230,2.71735421,144.09,143.97,6.9283]
[1750754227424,2.71735421,144.08,143.97,6.9283]
[1750754227627,2.71735421,144.1,143.97,6.9283]
[1750754227933,1.5793,144.11,143.97,6.9283]
[1750754227934,2.71735421,144.09,143.97,6.9283]
[1750754228132,2.71735421,144.08,143.97,6.9283]
[1750754228322,2.71735421,144.1,143.97,6.9283]
[1750754228630,2.71735421,144.09,143.97,6.9283]
[1750754228826,1.5793,144.11,143.97,6.9283]
[1750754228827,2.71735421,144.08,143.97,6.9283]
[1750754229027,2.71735421,144.07,143.97,6.9283]
[1750754229234,2.71735421,144.1,143.97,6.9283]
[1750754229533,2.71735421,144.09,143.97,6.9283]
[1750754229723,2.71735421,144.08,143.97,6.9283]
[1750754229924,2.71735421,144.07,143.97,6.9283]
[1750754230130,2.71735421,144.06,143.97,6.9283]
[1750754230326,2.71735421,144.05,143.97,6.9283]
[1750754230521,2.71735421,144.1,143.97,6.9283]
[1750754230728,2.72195085,144.09,143.97,6.9283]
[1750754230929,2.72195085,144.08,143.97,6.9283]
[1750754231125,2.72195085,144.07,143.97,6.9283]
[1750754231336,2.72195085,144.1,143.97,6.9283]
[1750754231628,2.72195085,144.09,143.97,6.9283]
[1750754231829,2.72195085,144.08,143.97,6.9283]
[1750754232133,2.72195085,144.07,143.97,6.9283]
[1750754232332,2.72195085,144.1,143.97,6.9283]
[1750754232521,2.72195085,144.09,143.97,6.9283]
[1750754232722,1.5791,144.15,143.97,6.9283]
[1750754232926,2.71745954,144.14,143.97,6.9283]
[1750754233224,2.71745954,144.13,143.97,13.29263542]
[1750754233419,2.71745954,144.12,143.97,13.29263542]
[1750754233622,2.71745954,144.11,143.97,13.29263542]
[1750754233935,2.71745954,144.1,143.97,13.29263542]
[1750754234133,2.71745954,144.09,143.98,6.36433542]
[1750754234331,28.80416564,144.15,143.98,6.36433542]
[1750754234537,2.72094012,144.14,143.98,6.36433542]
[1750754234738,2.72094012,144.13,143.98,6.36433542]
[1750754235038,2.72094012,144.12,143.99,6.36433542]
[1750754235339,2.72094012,144.11,144.0,6.36433542]
[1750754235640,2.72185036,144.1,144.01,6.36433542]
[1750754235934,1.5791,144.15,144.01,6.36433542]
[1750754236131,2.72171909,144.14,144.01,6.36433542]
[1750754236433,2.72279956,144.13,144.01,6.36433542]
[1750754236637,2.72279956,144.12,144.01,6.36433542]
[1750754236841,2.72279956,144.11,144.01,6.36433542]
[1750754237144,2.72279956,144.1,144.01,6.36433542]
[1750754237436,31.81015891,144.17,144.02,6.36433542]
[1750754237638,2.72317572,144.16,144.03,6.9463]
[1750754237840,2.72317572,144.15,144.03,6.9463]
[1750754238041,2.72317572,144.14,144.03,6.9463]
[1750754238231,2.72317572,144.13,144.03,6.9463]
[1750754238430,2.72317572,144.12,144.03,6.9463]
[1750754238634,2.72317572,144.11,144.03,6.9463]
[1750754238831,2.72317572,144.1,144.03,6.9463]
[1750754239133,6.37506564,144.16,144.03,6.9463]
[1750754239329,2.72200586,144.15,144.03,6.9463]
[1750754239540,2.72226814,144.14,144.03,6.9463]
[1750754239732,2.72226814,144.13,144.03,6.9463]
[1750754239938,7.58266519,144.19,144.04,6.36433542]
[1750754240134,2.72248556,144.18,144.04,6.36433542]
[1750754240332,7.58266519,144.19,144.05,6.36433542]
[1750754240333,2.72248556,144.17,144.05,6.36433542]
[1750754240535,2.72248556,144.16,144.05,6.36433542]
[1750754240735,2.72248556,144.15,144.05,6.36433542]
[1750754240927,2.72248556,144.14,144.05,6.36433542]
[1750754241128,1.20759955,144.19,144.05,6.36433542]
[1750754241338,2.72270012,144.18,144.05,6.36433542]
[1750754241640,2.72270012,144.17,144.05,6.36433542]
[1750754241942,2.72270012,144.16,144.05,6.36433542]
[1750754242142,2.72270012,144.15,144.05,6.36433542]
[1750754242444,2.72270012,144.14,144.05,6.36433542]
[1750754242637,1.20759955,144.19,144.05,6.36433542]
[1750754242834,9.09754694,144.18,144.04,6.36433542]
[1750754243041,2.7224813,144.17,144.03,6.9463]
[1750754243339,2.7224813,144.16,144.03,6.9463]
[1750754243642,2.7224813,144.15,144.03,6.9463]
[1750754243836,2.7224813,144.14,144.03,6.9463]
[1750754244040,2.7224813,144.13,144.03,6.9463]
[1750754244241,27.22506564,144.18,144.03,6.9463]
[1750754244242,2.7224813,144.12,144.03,6.9463]
[1750754244539,2.72134899,144.11,144.03,6.9463]
[1750754244845,2.72134899,144.1,144.03,6.9463]
[1750754245042,2.72135413,144.09,144.03,6.9463]
[1750754245341,2.72134527,144.14,144.03,6.9463]
[1750754245545,2.72134527,144.13,144.03,6.9463]
[1750754245736,2.72134527,144.12,144.03,6.9463]
[1750754245933,2.72134527,144.11,144.03,6.9463]
[1750754246133,2.72134527,144.1,144.03,6.9463]
[1750754246330,27.22506564,144.15,144.03,6.9463]
[1750754246534,2.72259761,144.14,144.03,6.9463]
[1750754247141,27.22506564,144.15,144.03,6.9463]
[1750754250043,20.85,144.15,144.03,6.9463]
[1750754253943,27.22506564,144.15,144.03,6.9463]
[1750754254142,27.22506564,144.14,144.03,6.9463]
[1750754254947,6.37506564,144.13,144.03,6.9463]
[1750754255445,27.22506564,144.14,144.03,6.9463]
[1750754256049,20.85,144.14,144.03,6.9463]
[1750754256250,27.22506564,144.14,144.03,6.9463]
[1750754256545,20.85,144.14,144.03,6.9463]
[1750754256951,27.22506564,144.14,144.03,6.9463]
[1750754257653,6.37506564,144.13,144.03,6.9463]
[1750754258142,27.22506564,144.13,144.03,6.9463]
[1750754258951,27.22506564,144.12,144.03,6.9463]
[1750754259847,27.22506564,144.12,144.03,4.6389]
[1750754260353,6.37506564,144.11,144.03,4.6389]
[1750754261048,27.22506564,144.11,143.98,8.70242058]
[1750754261253,27.22506564,144.11,143.99,4.4692]
[1750754262142,2.72763174,144.1,143.99,4.4692]
[1750754262448,2.72763174,144.09,143.99,4.4692]
[1750754262645,2.72763174,144.08,143.99,4.4692]
[1750754262846,2.72763174,144.07,143.99,4.4692]
[1750754263151,2.72763174,144.06,143.99,10.92402058]
[1750754263350,31.81777306,144.11,143.99,10.92402058]
[1750754263351,2.72763174,144.05,143.99,10.92402058]
[1750754263546,31.81777306,144.11,143.99,10.92402058]
[1750754263750,2.7640037,144.1,144.02,6.45482058]
[1750754263949,2.7640037,144.09,144.03,6.45482058]
[1750754264149,10.96777306,144.15,144.04,2.2426]
[1750754264450,2.76469783,144.14,144.04,2.2426]
[1750754264645,2.76469783,144.13,144.05,4.6146]
[1750754264850,2.76469783,144.12,144.05,4.6146]
[1750754265048,2.76469783,144.11,144.05,4.6146]
[1750754265355,10.98580231,144.17,144.05,11.06942058]
[1750754265550,2.76454199,144.16,144.05,11.06942058]
[1750754265750,2.76454199,144.15,144.05,4.6146]
[1750754265950,2.76454199,144.14,144.05,4.6146]
[1750754266254,2.76454199,144.13,144.05,11.06942058]
[1750754266455,2.76454199,144.12,144.05,11.06942058]
[1750754266755,2.76454199,144.11,144.05,11.06942058]
[1750754266952,2.76454199,144.1,144.05,4.6146]
[1750754267160,2.76459016,144.09,144.05,4.6146]
[1750754267449,10.98563664,144.15,144.05,4.6146]
[1750754267654,2.76463396,144.14,144.05,4.6146]
[1750754267856,2.76463396,144.13,144.05,4.6146]
[1750754268052,2.76463396,144.12,144.05,4.6146]
[1750754268260,2.76463396,144.11,144.05,4.6146]
[1750754268458,2.76463396,144.1,144.05,4.6146]
[1750754268758,2.76463396,144.09,144.05,4.6146]
[1750754268959,2.76463396,144.08,144.05,4.6146]
[1750754269147,10.98534558,144.14,144.05,4.6146]
[1750754269460,9.14710477,144.13,144.05,4.6146]
[1750754269761,2.77203913,144.12,144.05,4.6146]
[1750754269957,2.77203913,144.11,144.05,4.6146]
[1750754270154,2.77203913,144.1,144.05,4.6146]
[1750754270462,6.37506564,144.16,144.05,4.6146]
[1750754270655,2.77296033,144.15,144.05,4.6146]
[1750754270857,2.77296033,144.14,144.05,4.6146]
[1750754271061,2.77296033,144.13,144.05,4.6146]
[1750754271357,2.77296033,144.12,144.05,4.6146]
[1750754271559,2.77296033,144.11,144.05,4.6146]
[1750754271855,2.77296033,144.1,144.05,4.6146]
[1750754272053,6.37506564,144.16,144.05,4.6146]
[1750754272254,2.77371972,144.15,144.05,4.6146]
[1750754272454,2.77371972,144.14,144.05,4.6146]
[1750754272753,2.77371972,144.13,144.05,4.6146]
[1750754272954,2.77371972,144.12,144.05,4.6146]
[1750754273158,2.77371972,144.11,144.05,4.6146]
[1750754273464,2.77371972,144.1,144.05,4.6146]
[1750754273658,6.37506564,144.16,144.05,4.6146]
[1750754273961,2.77462541,144.15,144.05,4.6146]
[1750754274159,2.77462541,144.14,144.05,4.6146]
[1750754274354,2.77462541,144.13,144.05,4.6146]
[1750754274553,2.77462541,144.12,144.05,4.6146]
[1750754274749,2.77462541,144.11,144.05,4.6146]
[1750754275061,2.77462541,144.1,144.05,4.6146]
[1750754275264,2.77462541,144.09,144.05,4.6146]
[1750754275562,6.37506564,144.15,144.05,4.6146]
[1750754276063,2.77921358,144.14,144.05,4.6146]
[1750754276249,6.37506564,144.15,144.05,4.6146]
[1750754276250,2.77921358,144.13,144.05,4.6146]
[1750754276453,2.77921358,144.12,144.05,4.6146]
[1750754276749,2.77921358,144.11,144.05,4.6146]
[1750754276951,2.77921358,144.1,144.05,4.6146]
[1750754277156,6.37506564,144.15,144.05,4.6146]
[1750754277457,2.78236693,144.14,144.05,4.6146]
[1750754277665,2.78236693,144.13,144.05,4.6146]
[1750754277853,2.78236693,144.12,144.05,4.6146]
[1750754278158,2.78236693,144.11,144.05,4.6146]
[1750754278359,10.98534558,144.16,144.05,4.6146]
[1750754278561,2.78334989,144.15,144.05,11.08799258]
[1750754278863,2.78336923,144.14,144.05,11.08799258]
[1750754279065,2.78336923,144.13,144.05,11.08799258]
[1750754279364,2.78336923,144.12,144.05,11.08799258]
[1750754279558,2.78336923,144.11,144.05,11.08799258]
[1750754279761,6.37506564,144.16,144.05,11.08799258]
[1750754279963,2.78721381,144.15,144.05,11.08799258]
[1750754280160,2.78721381,144.14,144.05,11.08799258]
[1750754280460,2.78721381,144.13,144.05,11.08799258]
[1750754280658,2.78721381,144.12,144.05,11.08799258]
[1750754280862,2.78721381,144.11,144.05,11.08799258]
[1750754281066,6.37506564,144.16,144.05,11.08799258]
[1750754281260,2.79087538,144.15,144.05,11.08799258]
[1750754281460,6.37506564,144.16,144.05,11.08799258]
[1750754281664,2.79203871,144.15,144.08,6.47339258]
[1750754281865,2.79203871,144.14,144.08,6.47339258]
[1750754282064,4.6543517,144.18,144.09,6.47339258]
[1750754282368,2.79132909,144.17,144.1,8.87609258]
[1750754282558,6.37506564,144.23,144.11,11.04139258]
[1750754282757,4.65244024,144.24,144.14,6.47339258]
[1750754282959,6.37506564,144.25,144.14,6.47339258]
[1750754283354,6.37506564,144.26,144.14,6.47339258]
[1750754283562,7.58212067,144.27,144.14,6.47339258]
[1750754283759,7.58212067,144.27,144.15,6.47339258]
[1750754283961,1.20705503,144.27,144.15,6.47339258]
[1750754284671,1.20705503,144.27,144.13,8.56454322]
[1750754285369,1.20705503,144.27,144.12,8.56454322]
[1750754285569,1.20705503,144.27,144.11,13.13254322]
[1750754285764,1.20705503,144.27,144.12,8.56454322]
[1750754286171,11.01387603,144.3,144.12,8.56454322]